fUSD/lending_fUSD_20240125
["ID","MTS","AMOUNT","RATE_DAILY","PERIOD"]
[312664620,1706141508848,-500.0,0.00051232,31]
[312664621,1706141508859,-500.0,0.00051232,31]
[312664622,1706141508870,-500.0,0.00051232,31]
[312664623,1706141508879,-500.0,0.00051232,31]
[312664624,1706141508889,-500.0,0.00051232,31]
[312664625,1706141508898,-728.06,0.00051232,31]
[312664626,1706141508909,-500.0,0.00051232,31]
[312664627,1706141508920,-500.0,0.00051232,31]
[312664628,1706141508930,-500.0,0.00051232,31]
[312664629,1706141508939,-500.0,0.00051232,31]
[312664630,1706141508948,-500.0,0.00051232,31]
[312664631,1706141508958,-973.03,0.00051232,2]
[312664632,1706141508967,-500.0,0.00051232,31]
[312664633,1706141508977,-500.0,0.00051232,31]
[312664634,1706141508986,-1697.01,0.00051232,31]
[312664635,1706141508996,-500.0,0.00051232,31]
[312664636,1706141509005,-500.0,0.00051232,31]
[312664637,1706141509015,-500.0,0.00051232,31]
[312664638,1706141509025,-500.0,0.00051232,31]
[312664639,1706141509034,-556.66,0.00051232,31]
[312664640,1706141509044,-500.0,0.00051232,31]
[312664641,1706141509053,-681.8,0.00051232,31]
[312664642,1706141509062,-500.0,0.00051232,31]
[312664643,1706141509072,-797.85,0.00051232,31]
[312664644,1706141509083,-500.0,0.00051232,31]
[312664645,1706141509094,-508.04,0.00051232,31]
[312664646,1706141509104,-500.0,0.00051232,31]
[312664647,1706141509114,-500.0,0.00051232,31]
[312664648,1706141509124,-500.0,0.00051232,31]
[312664649,1706141509133,-659.17,0.00051232,31]
[312664650,1706141509143,-500.0,0.00051232,31]
[312664651,1706141509152,-514.92,0.00051232,31]
[312664652,1706141509161,-520.3,0.00051232,31]
[312664653,1706141509170,-717.84,0.00051232,31]
[312664654,1706141509179,-1187.72,0.00051232,31]
[312664655,1706141509189,-500.0,0.00051232,31]
[312664656,1706141509198,-563.62,0.00051232,31]
[312664657,1706141509207,-500.0,0.00051232,31]
[312664658,1706141509217,-500.0,0.00051232,31]
[312664659,1706141509226,-203.82,0.00051232,31]
[312664660,1706141509236,-500.0,0.00051232,31]
[312664661,1706141509245,-1126.94,0.00051232,31]
[312664662,1706141509254,-551.67,0.00051232,31]
[312664663,1706141509264,-1119.03,0.00051232,2]
[312664664,1706141509276,-1035.65,0.00051232,31]
[312664665,1706141509285,-500.0,0.00051232,31]
[312664666,1706141509295,-738.6,0.00051232,31]
[312664667,1706141509308,-500.0,0.00051232,31]
[312664668,1706141509318,-500.0,0.00051232,31]
[312664669,1706141509327,-1041.4,0.00051232,31]
[312664670,1706141509338,-665.87,0.00051232,31]
[312664671,1706141509349,-500.0,0.00051232,31]
[312664672,1706141509358,-500.0,0.00051232,31]
[312664673,1706141509368,-531.79,0.00051232,31]
[312664674,1706141509379,-511.53,0.00051232,31]
[312664675,1706141509389,-693.29,0.00051232,31]
[312664676,1706141509400,-569.14,0.00051232,31]
[312664677,1706141509410,-1258.54,0.00051232,31]
[312664678,1706141509420,-500.0,0.00051232,31]
[312664679,1706141509430,-500.0,0.00051232,31]
[312664680,1706141509439,-500.0,0.00051232,31]
[312664681,1706141509449,-500.0,0.00051232,31]
[312664682,1706141509458,-523.57,0.00051232,31]
[312664683,1706141509468,-500.0,0.00051232,31]
[312664684,1706141509479,-3674.77,0.00051232,31]
[312664685,1706141509489,-3124.04,0.00051232,31]
[312664686,1706141509499,-1845.53,0.00051232,31]
[312664687,1706141509509,-500.0,0.00051232,31]
[312664688,1706141509519,-698.55,0.00051232,31]
[312664689,1706141509530,-500.0,0.00051232,31]
[312664690,1706141509541,-500.0,0.00051232,31]
[312664691,1706141509552,-3836.74,0.00051232,5]
[312664692,1706141509562,-500.0,0.00051232,31]
[312664693,1706141509573,-1206.46,0.00051232,31]
[312664694,1706141509586,-500.0,0.00051232,31]
[312664695,1706141509596,-1295.76,0.00051232,31]
[312664696,1706141509606,-500.0,0.00051232,31]
[312664697,1706141509618,-500.0,0.00051232,31]
[312664698,1706141509628,-500.0,0.00051232,31]
[312664699,1706141509638,-766.32,0.00051232,31]
[312664700,1706141509648,-500.0,0.00051232,31]
[312664701,1706141509658,-944.79,0.00051232,31]
[312664702,1706141509667,-585.71,0.00051232,31]
[312664703,1706141509677,-5283.49,0.00051232,5]
[312664704,1706141509687,-500.0,0.00051232,31]
[312664705,1706141509697,-500.0,0.00051232,31]
[312664706,1706141509707,-500.0,0.00051232,31]
[312664707,1706141509716,-718.1,0.00051232,31]
[312664708,1706141509726,-966.39,0.00051232,31]
[312664709,1706141509736,-1006.46,0.00051232,31]
[312664710,1706141509747,-517.29,0.00051232,31]
[312664711,1706141509757,-8715.7,0.00051232,31]
[312664712,1706141509767,-567.82,0.00051232,31]
[312664713,1706141509777,-608.48,0.00051232,31]
[312664714,1706141509788,-500.0,0.00051232,31]
[312664715,1706141509798,-500.0,0.00051232,31]
[312664716,1706141509808,-500.0,0.00051232,31]
[312664717,1706141509817,-5784.02,0.00051232,31]
[312664718,1706141509827,-500.0,0.00051232,31]
[312664719,1706141509841,-672.35,0.00051232,31]
[312664720,1706141509856,-719.02,0.00051232,31]
[312664721,1706141509865,-660.52,0.00051232,31]
[312664722,1706141509875,-571.27,0.00051232,31]
[312664723,1706141509885,-500.0,0.00051232,31]
[312664724,1706141509895,-681.13,0.00051232,31]
[312664725,1706141509905,-500.0,0.00051232,31]
[312664726,1706141509915,-500.0,0.00051232,31]
[312664727,1706141509925,-500.0,0.00051232,31]
[312664728,1706141509935,-500.0,0.00051232,31]
[312664729,1706141509945,-687.75,0.00051232,31]
[312664730,1706141509955,-742.38,0.00051232,31]
[312664731,1706141509965,-2393.75,0.00051232,31]
[312664732,1706141509975,-500.0,0.00051232,31]
[312664733,1706141509984,-5066.61,0.00051232,31]
[312664734,1706141509995,-500.0,0.00051232,31]
[312664735,1706141510004,-500.0,0.00051232,31]
[312664736,1706141510014,-500.0,0.00051232,31]
[312664737,1706141510024,-572.67,0.00051232,31]
[312664738,1706141510034,-500.0,0.00051232,31]
[312664739,1706141510045,-2453.54,0.00051232,31]
[312664740,1706141510055,-500.0,0.00051232,31]
[312664741,1706141510065,-2701.77,0.00051232,31]
[312664742,1706141510075,-500.0,0.00051232,31]
[312664743,1706141510086,-500.0,0.00051232,31]
[312664744,1706141510097,-580.27,0.00051232,31]
[312664745,1706141510106,-584.5,0.00051232,31]
[312664746,1706141510116,-500.0,0.00051232,31]
[312664747,1706141510126,-500.0,0.00051232,31]
[312664748,1706141510136,-1141.79,0.00051232,31]
[312664749,1706141510146,-1360.18,0.00051232,31]
[312664750,1706141510156,-1000.0,0.00051232,2]
[312664751,1706141510166,-693.55,0.00051232,31]
[312664752,1706141510176,-543.89,0.00051232,31]
[312664753,1706141510186,-683.16,0.00051232,31]
[312664754,1706141510195,-500.0,0.00051232,31]
[312664755,1706141510205,-500.0,0.00051232,31]
[312664756,1706141510215,-500.0,0.00051232,31]
[312664757,1706141510225,-500.0,0.00051232,31]
[312664758,1706141510234,-835.92,0.00051232,31]
[312664759,1706141510243,-608.94,0.00051232,31]
[312664760,1706141510253,-1468.94,0.00051232,31]
[312664761,1706141510263,-578.45,0.00051232,31]
[312664762,1706141510273,-500.0,0.00051232,31]
[312664763,1706141510283,-500.0,0.00051232,31]
[312664764,1706141510293,-552.79,0.00051232,31]
[312664765,1706141510305,-2066.55,0.00051232,31]
[312664766,1706141510316,-706.67,0.00051232,31]
[312664767,1706141510326,-500.0,0.00051232,31]
[312664768,1706141510340,-540.87,0.00051232,31]
[312664769,1706141510351,-582.15,0.00051232,31]
[312664770,1706141510361,-500.0,0.00051232,31]
[312664771,1706141510371,-639.06,0.00051232,31]
[312664772,1706141510380,-500.0,0.00051232,31]
[312664773,1706141510390,-500.0,0.00051232,31]
[312664774,1706141510401,-740.88,0.00051232,31]
[312664775,1706141510410,-700.44,0.00051232,31]
[312664776,1706141510621,-500.0,0.00051232,31]
[312664777,1706141510664,-500.0,0.00051232,31]
[312664778,1706141510676,-537.04,0.00051232,31]
[312664779,1706141510686,-751.1,0.00051232,31]
[312664780,1706141510702,-677.43,0.00051232,31]
[312664781,1706141510711,-500.0,0.00051232,31]
[312664782,1706141510721,-2280.94,0.00051232,31]
[312664783,1706141510730,-500.0,0.00051232,31]
[312664784,1706141510740,-547.24,0.00051232,31]
[312664785,1706141510750,-500.0,0.00051232,31]
[312664786,1706141510760,-500.0,0.00051232,31]
[312664787,1706141510770,-500.0,0.00051232,31]
[312664788,1706141510780,-500.0,0.00051232,31]
[312664789,1706141510789,-1060.9,0.00051232,31]
[312664790,1706141510799,-581.01,0.00051232,31]
[312664791,1706141510809,-500.0,0.00051232,31]
[312664792,1706141510818,-500.0,0.00051232,31]
[312664793,1706141510828,-537.1,0.00051232,31]
[312664794,1706141510839,-329.82224435,0.00051232,31]
[312664795,1706141510849,-778.86,0.00051232,31]
[312664796,1706141510858,-857.21,0.00051232,31]
[312664797,1706141510868,-500.0,0.00051232,31]
[312664798,1706141510878,-1735.79,0.00051232,31]
[312664799,1706141510888,-500.0,0.00051232,31]
[312664800,1706141510897,-500.0,0.00051232,31]
[312664801,1706141510907,-608.69,0.00051232,31]
[312664802,1706141510916,-500.0,0.00051232,31]
[312664803,1706141510926,-606.25,0.00051232,31]
[312664804,1706141510935,-500.0,0.00051232,31]
[312664805,1706141510945,-500.0,0.00051232,31]
[312664806,1706141510955,-712.54,0.00051232,31]
[312664807,1706141510965,-645.15,0.00051232,31]
[312664808,1706141510975,-1073.61,0.00051232,31]
[312664809,1706141510985,-660.57,0.00051232,31]
[312664810,1706141510996,-1320.68,0.00051232,31]
[312664811,1706141511007,-655.7,0.00051232,31]
[312664812,1706141511017,-992.0,0.00051232,31]
[312664813,1706141511027,-500.0,0.00051232,31]
[312664814,1706141511037,-4966.08,0.00051232,31]
[312664815,1706141511047,-1315.35,0.00051232,31]
[312664816,1706141511057,-500.0,0.00051232,31]
[312664817,1706141511066,-500.0,0.00051232,31]
[312664818,1706141511076,-796.46,0.00051232,31]
[312664819,1706141511087,-500.0,0.00051232,31]
[312664820,1706141511096,-500.0,0.00051232,31]
[312664821,1706141511106,-500.0,0.00051232,31]
[312664822,1706141511115,-3061.04,0.00051232,31]
[312664823,1706141511125,-564.19,0.00051232,31]
[312664824,1706141511134,-860.59,0.00051232,31]
[312664825,1706141511144,-500.0,0.00051232,31]
[312664826,1706141511154,-553.53,0.00051232,31]
[312664827,1706141511164,-500.0,0.00051232,31]
[312664828,1706141511174,-573.12850272,0.00051232,31]
[312664829,1706141511183,-2426.6,0.00051232,31]
[312664830,1706141511193,-547.26,0.00051232,31]
[312664831,1706141511204,-500.0,0.00051232,31]
[312664832,1706141511214,-649.59,0.00051232,31]
[312664833,1706141511224,-1086.36,0.00051232,31]
[312664834,1706141511234,-959.04,0.00051232,31]
[312664835,1706141511244,-500.0,0.00051232,31]
[312664836,1706141511254,-703.22,0.00051232,31]
[312664837,1706141511264,-600.26,0.00051232,31]
[312664838,1706141511275,-740.74,0.00051232,31]
[312664839,1706141511289,-787.85,0.00051232,31]
[312664840,1706141511299,-500.0,0.00051232,31]
[312664841,1706141511309,-765.5,0.00051232,31]
[312664842,1706141511319,-730.54,0.00051232,31]
[312664843,1706141511329,-500.0,0.00051232,31]
[312664844,1706141511340,-500.0,0.00051232,31]
[312664845,1706141511349,-599.29,0.00051232,31]
[312664846,1706141511360,-500.0,0.00051232,31]
[312664847,1706141511371,-737.72,0.00051232,31]
[312664848,1706141511381,-500.55,0.00051232,31]
[312664849,1706141511390,-500.0,0.00051232,31]
[312664850,1706141511400,-847.8,0.00051232,31]
[312664851,1706141511409,-539.53,0.00051232,31]
[312664852,1706141511419,-500.0,0.00051232,31]
[312664853,1706141511429,-501.79,0.00051232,31]
[312664854,1706141511439,-500.0,0.00051232,31]
[312664855,1706141511449,-714.81,0.00051232,31]
[312664856,1706141511460,-560.58,0.00051232,31]
[312664857,1706141511470,-765.11,0.00051232,31]
[312664858,1706141511481,-500.0,0.00051232,31]
[312664859,1706141511491,-500.0,0.00051232,31]
[312664860,1706141511500,-500.0,0.00051232,31]
[312664861,1706141511511,-1451.54,0.00051232,31]
[312664862,1706141511521,-500.0,0.00051232,31]
[312664863,1706141511531,-764.66,0.00051232,31]
[312664864,1706141511541,-673.27,0.00051232,31]
[312664865,1706141511552,-1105.43,0.00051232,31]
[312664866,1706141511562,-3144.18,0.00051232,31]
[312664867,1706141511572,-500.0,0.00051232,31]
[312664868,1706141511582,-500.0,0.00051232,31]
[312664869,1706141511592,-748.16,0.00051232,31]
[312664870,1706141511601,-678.69,0.00051232,31]
[312664871,1706141511610,-500.0,0.00051232,120]
[312664872,1706141511621,-548.31,0.00051232,31]
[312664873,1706141511630,-500.0,0.00051232,31]
[312664874,1706141511639,-532.81,0.00051232,31]
[312664875,1706141511649,-363.06801931,0.00051232,31]
[312664876,1706141511659,-515.5,0.00051232,31]
[312664877,1706141511668,-792.67,0.00051232,31]
[312664878,1706141511678,-500.0,0.00051232,31]
[312664879,1706141511688,-1247.69,0.00051232,31]
[312664880,1706141511697,-612.72,0.00051232,31]
[312664881,1706141511706,-1295.4,0.00051232,31]
[312664882,1706141511717,-820.44,0.00051232,31]
[312664883,1706141511727,-500.0,0.00051232,31]
[312664884,1706141511736,-939.98,0.00051232,31]
[312664885,1706141511745,-689.9,0.00051232,31]
[312664886,1706141511755,-500.0,0.00051232,31]
[312664887,1706141511766,-650.74,0.00051232,31]
[312664888,1706141511776,-3710.41,0.00051232,31]
[312664889,1706141511785,-594.93,0.00051232,2]
[312664890,1706141511795,-646.07,0.00051232,31]
[312664891,1706141511804,-500.0,0.00051232,31]
[312664892,1706141511814,-500.0,0.00051232,31]
[312664893,1706141511824,-2728.94,0.00051232,31]
[312664894,1706141511835,-500.0,0.00051232,31]
[312664895,1706141511845,-1281.32,0.00051232,31]
[312664896,1706141511856,-1822.59,0.00051232,2]
[312664897,1706141511866,-500.0,0.00051232,31]
[312664898,1706141511875,-500.0,0.00051232,31]
[312664899,1706141511885,-500.0,0.00051232,31]
[312664900,1706141511895,-500.0,0.00051232,31]
[312664901,1706141511905,-500.0,0.00051232,31]
[312664902,1706141511914,-500.0,0.00051232,31]
[312664903,1706141511923,-1129.79,0.00051232,31]
[312664904,1706141511933,-724.18,0.00051232,31]
[312664905,1706141511943,-605.74,0.00051232,31]
[312664906,1706141511954,-500.0,0.00051232,31]
[312664907,1706141511963,-500.0,0.00051232,31]
[312664908,1706141511973,-824.96,0.00051232,31]
[312664909,1706141511983,-887.42,0.00051232,31]
[312664910,1706141511992,-500.0,0.00051232,31]
[312664911,1706141512002,-500.0,0.00051232,31]
[312664912,1706141512012,-866.53,0.00051232,31]
[312664913,1706141512021,-510.96,0.00051232,31]
[312664914,1706141512031,-757.86,0.00051232,2]
[312664915,1706141512041,-500.0,0.00051232,31]
[312664916,1706141512050,-500.0,0.00051232,31]
[312664917,1706141512060,-887.79,0.00051232,31]
[312664918,1706141512070,-566.99,0.00051232,31]
[312664919,1706141512079,-452.49609033,0.00051277,60]
[312664920,1706141512091,-150.37716717,0.00051305,60]
[312664921,1706141512100,-557.89339602,0.00051326,120]
[312664922,1706141512110,-153.78758588,0.00051364,60]
[312664923,1706141512119,-1463.20744382,0.00051366,60]
[312664924,1706141512128,-4998.49650352,0.00051366,6]
[312664925,1706141512138,-153.21386404,0.00051371,60]
[312664926,1706141512148,-647.69,0.00051397,120]
[312664927,1706141512158,-210.0,0.000514,40]
[312664928,1706141512167,-150.0,0.00051425,120]
[312664929,1706141512177,-153.87365434,0.00051427,60]
[312664930,1706141512187,-156.43151779,0.0005143,60]
[312664931,1706141512196,-432.40353136,0.0005143,60]
[312664932,1706141512206,-452.49609033,0.00051447,60]
[312664933,1706141512215,-153.87365434,0.00051461,60]
[312664934,1706141512225,-156.43151779,0.00051469,60]
[312664935,1706141512235,-584.90819405,0.00051474,60]
[312664936,1706141512244,-150.0,0.00051478,2]
[312664937,1706141512254,-150.37716717,0.00051484,60]
[312664938,1706141512264,-200.0,0.000515,29]
[312664939,1706141512273,-210.0,0.000515,120]
[312664940,1706141512284,-153.87365434,0.00051502,60]
[312664941,1706141512294,-500.0,0.00051506,31]
[312664942,1706141512306,-500.0,0.00051506,31]
[312664943,1706141512316,-500.0,0.00051506,31]
[312664944,1706141512325,-500.0,0.00051506,31]
[312664945,1706141512338,-571.87,0.00051506,31]
[312664946,1706141512347,-500.0,0.00051506,31]
[312664947,1706141512357,-500.0,0.00051506,31]
[312664948,1706141512367,-500.0,0.00051506,31]
[312664949,1706141512378,-500.0,0.00051506,31]
[312664950,1706141512388,-500.0,0.00051506,31]
[312664951,1706141512398,-500.0,0.00051506,31]
[312664952,1706141512408,-500.0,0.00051506,31]
[312664953,1706141512417,-500.0,0.00051506,31]
[312664954,1706141512427,-500.0,0.00051506,31]
[312664955,1706141512437,-500.0,0.00051506,31]
[312664956,1706141512446,-500.0,0.00051506,31]
[312664957,1706141512456,-500.0,0.00051506,31]
[312664958,1706141512466,-500.0,0.00051506,31]
[312664959,1706141512476,-500.0,0.00051506,31]
[312664960,1706141512486,-500.0,0.00051506,31]
[312664961,1706141512495,-500.0,0.00051506,31]
[312664962,1706141512505,-250.0,0.00051506,31]
[312664963,1706141512514,-500.0,0.00051506,31]
[312664964,1706141512524,-500.0,0.00051506,31]
[312664965,1706141512533,-500.0,0.00051506,31]
[312664966,1706141512543,-500.0,0.00051506,31]
[312664967,1706141512552,-500.0,0.00051506,31]
[312664968,1706141512562,-500.0,0.00051506,31]
[312664969,1706141512571,-500.0,0.00051506,31]
[312664970,1706141512581,-500.0,0.00051506,31]
[312664971,1706141512593,-500.0,0.00051506,31]
[312664972,1706141512602,-500.0,0.00051506,31]
[312664973,1706141512611,-500.0,0.00051506,31]
[312664974,1706141512621,-500.0,0.00051506,31]
[312664975,1706141512630,-569.3,0.00051506,31]
[312664976,1706141512640,-547.01,0.00051506,31]
[312664977,1706141512649,-500.0,0.00051506,31]
[312664978,1706141512658,-500.0,0.00051506,31]
[312664979,1706141512668,-586.3366826,0.00051506,31]
[312664980,1706141512677,-500.0,0.00051506,31]
[312664981,1706141512686,-510.64,0.00051506,31]
[312664982,1706141512696,-500.0,0.00051506,31]
[312664983,1706141512706,-1000.0,0.00051506,7]
[312664984,1706141512715,-500.0,0.00051506,31]
[312664985,1706141512724,-500.0,0.00051506,31]
[312664986,1706141512734,-500.0,0.00051506,31]
[312664987,1706141512743,-500.0,0.00051506,31]
[312664988,1706141512753,-500.0,0.00051506,31]
[312664989,1706141512763,-500.0,0.00051506,31]
[312664990,1706141512773,-754.82,0.00051506,31]
[312664991,1706141512782,-500.0,0.00051506,31]
[312664992,1706141512791,-500.0,0.00051506,31]
[312664993,1706141512800,-917.61,0.00051506,31]
[312664994,1706141512809,-500.0,0.00051506,31]
[312664995,1706141512818,-500.0,0.00051506,2]
[312664996,1706141512828,-500.0,0.00051506,31]
[312664997,1706141512838,-500.0,0.00051506,31]
[312664998,1706141512848,-500.0,0.00051506,31]
[312664999,1706141512857,-665.93,0.00051506,31]
[312665000,1706141512868,-500.0,0.00051506,31]
[312665001,1706141512877,-702.69,0.00051506,31]
[312665002,1706141512886,-500.0,0.00051506,31]
[312665003,1706141512896,-500.0,0.00051506,31]
[312665004,1706141512905,-500.0,0.00051506,31]
[312665005,1706141512914,-619.19,0.00051506,31]
[312665006,1706141512924,-953.39,0.00051506,31]
[312665007,1706141512933,-500.0,0.00051506,2]
[312665008,1706141512942,-500.0,0.00051506,31]
[312665009,1706141512951,-500.0,0.00051506,31]
[312665010,1706141512960,-500.0,0.00051506,31]
[312665011,1706141512970,-500.0,0.00051506,31]
[312665012,1706141513059,-500.0,0.00051506,31]
[312665013,1706141513069,-500.0,0.00051506,31]
[312665014,1706141513078,-500.0,0.00051506,31]
[312665015,1706141513088,-500.0,0.00051506,31]
[312665016,1706141513097,-500.0,0.00051506,31]
[312665017,1706141513107,-500.0,0.00051506,31]
[312665018,1706141513116,-500.0,0.00051506,31]
[312665019,1706141513125,-500.0,0.00051506,31]
[312665020,1706141513133,-523.13,0.00051506,31]
[312665021,1706141513142,-500.0,0.00051506,31]
[312665022,1706141513151,-500.0,0.00051506,31]
[312665023,1706141513160,-500.0,0.00051506,31]
[312665024,1706141513169,-500.0,0.00051506,31]
[312665025,1706141513178,-500.0,0.00051506,31]
[312665026,1706141513187,-500.0,0.00051506,31]
[312665027,1706141513196,-539.3,0.00051506,31]
[312665028,1706141513205,-500.0,0.00051506,31]
[312665029,1706141513215,-500.0,0.00051506,31]
[312665030,1706141513224,-500.0,0.00051506,31]
[312665031,1706141513233,-500.0,0.00051506,31]
[312665032,1706141513242,-500.0,0.00051506,31]
[312665033,1706141513251,-500.0,0.00051506,31]
[312665034,1706141513261,-557.24,0.00051506,31]
[312665035,1706141513270,-500.0,0.00051506,31]
[312665036,1706141513280,-500.0,0.00051506,31]
[312665037,1706141513289,-500.0,0.00051506,31]
[312665038,1706141513300,-500.0,0.00051506,31]
[312665039,1706141513310,-500.0,0.00051506,31]
[312665040,1706141513319,-500.0,0.00051506,31]
[312665041,1706141513330,-500.0,0.00051506,31]
[312665042,1706141513342,-500.0,0.00051506,31]
[312665043,1706141513351,-500.0,0.00051506,31]
[312665044,1706141513361,-500.0,0.00051506,31]
[312665045,1706141513370,-500.0,0.00051506,31]
[312665046,1706141513380,-596.67,0.00051506,31]
[312665047,1706141513389,-500.0,0.00051506,31]
[312665048,1706141513398,-500.0,0.00051506,31]
[312665049,1706141513407,-650.62,0.00051506,31]
[312665050,1706141513416,-530.57,0.00051506,31]
[312665051,1706141513426,-590.77,0.00051506,31]
[312665052,1706141513435,-500.0,0.00051506,31]
[312665053,1706141513443,-500.0,0.00051506,31]
[312665054,1706141513453,-500.0,0.00051506,31]
[312665055,1706141513462,-500.0,0.00051506,31]
[312665056,1706141513472,-500.0,0.00051506,31]
[312665057,1706141513481,-500.0,0.00051506,31]
[312665058,1706141513490,-383.23976044,0.00051506,31]
[312665059,1706141513499,-537.66,0.00051506,31]
[312665060,1706141513509,-529.72,0.00051506,31]
[312665061,1706141513518,-500.0,0.00051506,31]
[312665062,1706141513532,-500.0,0.00051506,31]
[312665063,1706141513542,-668.66,0.00051506,31]
[312665064,1706141513551,-500.0,0.00051506,31]
[312665065,1706141513560,-500.0,0.00051506,31]
[312665066,1706141513570,-500.0,0.00051506,31]
[312665067,1706141513579,-500.0,0.00051506,31]
[312665068,1706141513590,-992.14,0.00051506,120]
[312665069,1706141513599,-500.0,0.00051506,31]
[312665070,1706141513608,-500.0,0.00051506,31]
[312665071,1706141513617,-500.0,0.00051506,31]
[312665072,1706141513626,-502.97,0.00051506,31]
[312665073,1706141513636,-500.0,0.00051506,31]
[312665074,1706141513645,-500.0,0.00051506,31]
[312665075,1706141513654,-500.0,0.00051506,31]
[312665076,1706141513663,-500.0,0.00051506,31]
[312665077,1706141513673,-500.0,0.00051506,31]
[312665078,1706141513682,-500.0,0.00051506,31]
[312665079,1706141513691,-500.0,0.00051506,31]
[312665080,1706141513701,-500.0,0.00051506,31]
[312665081,1706141513710,-500.0,0.00051506,31]
[312665082,1706141513719,-500.0,0.00051506,31]
[312665083,1706141513729,-626.76,0.00051506,31]
[312665084,1706141513738,-524.2,0.00051506,31]
[312665085,1706141513747,-500.0,0.00051506,31]
[312665086,1706141513756,-500.0,0.00051506,31]
[312665087,1706141513766,-310.65232556,0.00051506,31]
[312665088,1706141513775,-500.0,0.00051506,31]
[312665089,1706141513784,-697.72,0.00051506,2]
[312665090,1706141513793,-500.0,0.00051506,31]
[312665091,1706141513802,-500.0,0.00051506,31]
[312665092,1706141513811,-500.0,0.00051506,31]
[312665093,1706141513821,-502.99,0.00051506,31]
[312665094,1706141513830,-500.0,0.00051506,31]
[312665095,1706141513841,-500.0,0.00051506,31]
[312665096,1706141513850,-500.0,0.00051506,31]
[312665097,1706141513859,-500.0,0.00051506,31]
[312665098,1706141513869,-500.0,0.00051506,31]
[312665099,1706141513879,-500.0,0.00051506,31]
[312665100,1706141513888,-1084.63,0.00051506,31]
[312665101,1706141513897,-500.0,0.00051506,31]
[312665102,1706141513906,-500.0,0.00051506,31]
[312665103,1706141513916,-378.06350818,0.00051506,31]
[312665104,1706141513925,-500.0,0.00051506,31]
[312665105,1706141513934,-500.0,0.00051506,31]
[312665106,1706141513944,-500.0,0.00051506,31]
[312665107,1706141513953,-500.0,0.00051506,31]
[312665108,1706141513963,-500.0,0.00051506,31]
[312665109,1706141513972,-500.0,0.00051506,31]
[312665110,1706141513981,-500.0,0.00051506,31]
[312665111,1706141513990,-500.0,0.00051506,31]
[312665112,1706141514000,-500.0,0.00051506,31]
[312665113,1706141514009,-500.0,0.00051506,31]
[312665114,1706141514018,-500.0,0.00051506,31]
[312665115,1706141514028,-563.82,0.00051506,31]
[312665116,1706141514037,-500.0,0.00051506,31]
[312665117,1706141514046,-1246.63,0.00051506,7]
[312665118,1706141514055,-500.0,0.00051506,31]
[312665119,1706141514065,-500.0,0.00051506,31]